bitfinex-derivatives/quotes_ETHF0:USTF0_20250531
["timestamp","ask_amount","ask_price","bid_price","bid_amount"]
[1748660803202,3.2078,2497.0,2496.4,4.606]
[1748660803402,0.1999,2497.1,2496.4,4.606]
[1748660803905,0.80076,2496.7,2496.5,0.00601733]
[1748660804094,0.1999,2497.1,2496.5,0.00601733]
[1748660804697,5.7402,2497.0,2496.5,0.00601733]
[1748660804893,0.80076,2496.7,2496.5,0.00601733]
[1748660805100,0.80078,2496.6,2496.5,0.00601733]
[1748660805298,0.80091,2496.2,2496.1,45.005]
[1748660805591,0.80091,2496.2,2496.1,4.606]
[1748660805796,5.0,2496.2,2495.8,4.606]
[1748660806098,3.2078,2496.4,2495.8,4.606]
[1748660806304,4.00877,2496.0,2495.9,0.00601733]
[1748660806803,6.24807,2496.0,2495.9,0.00601733]
[1748660807799,5.4471,2496.0,2495.9,0.80701733]
[1748660808702,5.4471,2496.0,2495.9,2.09681733]
[1748660809502,5.4471,2496.0,2495.9,7.09681733]
[1748660809697,2.2393,2496.0,2495.9,7.73031733]
[1748660810006,2.2393,2496.0,2495.9,10.93811733]
[1748660811007,2.2393,2496.0,2495.9,5.93811733]
[1748660811403,2.2393,2496.0,2495.9,5.30461733]
[1748660811906,2.2393,2496.0,2495.9,9.91161733]
[1748660813402,2.2393,2496.0,2495.9,8.62181733]
[1748660813800,2.2393,2496.0,2495.9,7.82081733]
[1748660814006,2.2393,2496.0,2495.9,8.62181733]
[1748660818812,1.21999,2496.0,2495.9,13.62181733]
[1748660819006,4.5389,2496.8,2496.1,2.0023]
[1748660819206,0.2002,2496.7,2496.6,0.80076]
[1748660819407,0.2002,2496.7,2496.6,5.40276]
[1748660822316,1.68826,2497.0,2496.9,0.80068]
[1748660822515,1.68826,2497.0,2496.9,4.00848]
[1748660822816,0.00601733,2497.2,2497.1,0.80062]
[1748660823117,0.00601733,2497.2,2497.1,5.40262]
[1748660824627,0.00601733,2497.2,2497.1,4.602]
[1748660824826,1.38151733,2497.2,2497.1,4.602]
[1748660825526,0.00601733,2497.2,2497.1,5.40262]
[1748660827523,0.80660733,2497.2,2497.1,4.602]
[1748660827722,0.00601733,2497.2,2497.1,5.40262]
[1748660827923,0.00601733,2497.2,2497.1,0.80062]
[1748660828124,0.00601733,2497.2,2497.1,5.40162]
[1748660828322,0.00601733,2497.2,2497.1,4.601]
[1748660829028,0.00601733,2497.2,2497.1,5.40162]
[1748660830726,0.00601733,2497.2,2497.1,4.601]
[1748660830931,0.80660733,2497.2,2497.1,4.601]
[1748660831128,1.31731733,2497.2,2497.1,4.601]
[1748660831326,2.11790733,2497.2,2497.1,4.601]
[1748660831729,1.31731733,2497.2,2497.1,5.40162]
[1748660831930,0.00601733,2497.2,2497.1,5.40162]
[1748660832131,0.00601733,2497.2,2497.1,4.601]
[1748660832428,0.80065,2497.0,2496.9,3.2078]
[1748660832833,8.2078,2497.0,2496.5,40.38]
[1748660833034,0.80078,2496.6,2496.5,44.981]
[1748660833534,0.80076,2496.7,2496.5,44.981]
[1748660833725,2.09698,2496.6,2496.5,44.981]
[1748660834124,2.09698,2496.6,2496.5,4.601]
[1748660834935,1.2962,2496.6,2496.5,4.601]
[1748660835429,2.09698,2496.6,2496.5,4.601]
[1748660836030,0.80091,2496.2,2496.1,3.2078]
[1748660836231,0.6441,2496.5,2496.1,7.8088]
[1748660836426,1.997,2496.4,2496.1,7.8088]
[1748660836631,1.997,2496.4,2496.3,0.80088]
[1748660836834,0.80089,2496.3,2496.1,7.8088]
[1748660837037,1.3241,2496.2,2496.1,7.8088]
[1748660837239,2.12501,2496.2,2496.1,7.8088]
[1748660838437,2.12501,2496.2,2496.1,3.2078]
[1748660838739,7.12503,2496.2,2495.9,0.80701733]
[1748660838936,0.80097,2496.0,2495.9,0.00601733]
[1748660840643,0.80116,2495.5,2495.4,4.602]
[1748660841141,0.8012,2495.3,2495.2,3.2078]
[1748660841736,1.4466,2495.3,2495.2,3.2078]
[1748660842334,1.4466,2495.3,2495.1,4.602]
[1748660842335,0.80123,2495.2,2495.1,4.602]
[1748660842536,2.10953,2495.2,2495.1,4.602]
[1748660842738,0.80126,2495.1,2495.0,0.00401156]
[1748660843033,2.10956,2495.1,2495.0,0.00401156]
[1748660844136,1.3083,2495.1,2495.0,0.80530156]
[1748660844334,2.10956,2495.1,2495.0,0.00401156]
[1748660845238,7.10956,2495.1,2495.0,0.00401156]
[1748660845448,0.80142,2494.7,2494.5,4.602]
[1748660845640,2.17032,2494.6,2494.5,4.602]
[1748660846142,2.17032,2494.6,2494.3,3.2078]
[1748660846143,0.80149,2494.4,2494.3,3.2078]
[1748660846344,1.3689,2494.6,2494.2,4.603]
[1748660846345,0.80152,2494.3,2494.2,4.603]
[1748660847145,8.2078,2494.3,2493.9,4.603]
[1748660847444,1.3037,2494.2,2493.7,3.2078]
[1748660847642,0.80168,2493.8,2493.7,3.2078]
[1748660848248,0.80168,2493.8,2493.5,0.80177]
[1748660848434,1.3037,2493.7,2493.4,4.603]
[1748660848639,1.3037,2493.7,2493.6,0.80174]
[1748660848845,1.3037,2493.7,2493.1,4.603]
[1748660849046,0.6717,2494.2,2493.3,3.2078]
[1748660849240,1.3037,2493.9,2493.3,4.00963]
[1748660849440,1.3037,2493.9,2492.9,40.392]
[1748660849441,1.3037,2493.9,2493.2,4.6]
[1748660849640,1.3037,2493.9,2493.0,3.2078]
[1748660849641,3.2078,2493.7,2493.0,4.00972]
[1748660849841,2.6476,2493.6,2493.0,3.2078]
[1748660850042,2.6476,2493.6,2493.0,4.00972]
[1748660850243,2.6476,2493.6,2493.1,0.8019]
[1748660850544,2.6476,2493.6,2493.0,4.00972]
[1748660850846,2.6476,2493.6,2493.0,3.2078]
[1748660850847,0.8019,2493.1,2493.0,3.2078]
[1748660851350,0.80196,2493.0,2492.8,4.6]
[1748660851641,0.80197,2492.9,2492.8,4.6]
[1748660852543,0.80202,2492.8,2492.6,3.2078]
[1748660852847,2.09852,2492.8,2492.5,5.40308]
[1748660853051,0.80203,2492.7,2492.5,4.601]
[1748660853348,1.2716,2492.6,2492.3,4.00994]
[1748660853643,1.2716,2492.6,2492.3,3.2078]
[1748660853850,0.80211,2492.5,2492.3,3.2078]
[1748660854044,0.80211,2492.5,2491.8,4.601]
[1748660854045,0.80228,2492.0,2491.8,4.601]
[1748660854239,3.2078,2492.2,2491.8,4.601]
[1748660854443,1.2716,2492.1,2491.8,4.601]
[1748660854639,1.2716,2492.1,2491.8,5.40332]
[1748660854945,0.80227,2492.0,2491.8,4.601]
[1748660855145,1.2716,2491.9,2491.8,5.40332]
[1748660855547,3.2078,2492.2,2491.8,4.601]
[1748660855746,1.2716,2492.1,2491.9,0.80227]
[1748660855945,1.2716,2492.1,2491.8,5.4033]
[1748660856153,1.2716,2492.1,2492.0,0.80226]
[1748660856449,1.2716,2492.1,2491.9,0.80228]
[1748660857049,1.2716,2492.1,2491.8,5.4033]
[1748660857248,1.2716,2492.1,2491.9,0.80228]
[1748660857851,1.2716,2492.1,2491.9,0.80227]
[1748660858157,3.2078,2492.2,2492.0,0.80226]
[1748660858757,3.2078,2492.2,2491.8,4.601]
[1748660859050,0.80227,2492.0,2491.8,4.601]
[1748660859243,1.2627,2491.9,2491.6,2.05977]
[1748660859445,6.47623,2491.9,2490.9,3.2078]
[1748660859641,0.80245,2491.4,2491.1,0.80253]
[1748660859841,3.2078,2491.5,2490.9,3.2078]
[1748660860041,0.8025,2491.3,2491.0,2.10716]
[1748660860441,1.2858,2491.4,2491.0,1.3046]
[1748660860651,4.4936,2491.4,2490.8,4.603]
[1748660860847,0.80255,2491.2,2490.8,5.40563]
[1748660861049,3.2078,2491.4,2490.8,4.603]
[1748660861352,3.2078,2491.4,2490.9,1.3046]
[1748660861550,0.80255,2491.1,2490.9,1.3046]
[1748660861752,4.01037,2491.1,2490.9,1.3046]
[1748660862246,0.8026,2491.0,2490.8,4.603]
[1748660862444,1.3606,2491.0,2490.6,1.3384]
[1748660862645,1.3606,2491.0,2490.8,0.80262]
[1748660862844,0.80262,2490.9,2490.6,2.14109]
[1748660863152,2.16318,2491.0,2490.7,2.14106]
[1748660863455,1.3606,2491.0,2490.8,0.80263]
[1748660863755,2.16318,2491.0,2490.7,2.14105]
[1748660864255,1.3606,2491.0,2490.8,0.80263]
[1748660864445,1.3606,2491.0,2490.7,2.14106]
[1748660864650,0.80263,2490.9,2490.7,1.3384]
[1748660864845,2.1632,2491.0,2490.7,2.14107]
[1748660865053,0.80261,2490.9,2490.7,1.3384]
[1748660865256,3.2078,2491.2,2490.7,1.3384]
[1748660865858,0.80261,2490.9,2490.7,1.3384]
[1748660866053,0.80264,2490.8,2490.7,1.3384]
[1748660866358,3.2078,2490.9,2490.5,8.61452]
[1748660866558,0.80265,2490.8,2490.6,0.80271]
[1748660866753,0.80269,2490.7,2490.5,7.8128]
[1748660867058,1.3582,2490.8,2490.5,7.8128]
[1748660867359,0.80269,2490.7,2490.5,7.8128]
[1748660867955,0.80269,2490.7,2490.3,1.262]
[1748660867956,0.80286,2490.2,2489.9,5.40892]
[1748660868158,0.80287,2490.1,2489.9,5.868]
[1748660868356,0.80286,2490.2,2489.9,6.67092]
[1748660868752,4.01662733,2490.3,2490.0,0.80288]
[1748660868958,3.21381733,2490.3,2490.1,1.2923]
[1748660869163,0.80284,2490.2,2490.1,1.2923]
[1748660869756,3.21381733,2490.3,2489.9,4.606]
[1748660869957,0.80296,2489.9,2489.6,2.09532]
[1748660870161,0.80299,2489.8,2489.5,5.9234]
[1748660870659,2.07905,2489.9,2489.6,2.09532]
[1748660870854,0.80299,2489.8,2489.6,1.2923]
[1748660871050,2.07905,2489.9,2489.6,1.2923]
[1748660871253,2.07905,2489.9,2489.5,6.72644]
[1748660871254,0.80303,2489.6,2489.5,4.606]
[1748660871758,0.80316,2489.2,2489.0,7.8148]
[1748660871952,0.80319,2489.1,2489.0,7.8148]
[1748660872258,3.2078,2489.4,2489.0,4.607]
[1748660872565,0.80319,2489.1,2489.0,4.607]
[1748660872760,0.80329,2488.8,2488.7,4.607]
[1748660873053,0.8033,2488.8,2488.6,1.2428]
[1748660873255,0.8033,2488.8,2488.5,0.80336]
[1748660873256,1.37961733,2489.0,2488.4,4.607]
[1748660873455,3.2078,2488.8,2488.4,5.8498]
[1748660873759,1.3736,2488.7,2488.4,5.8498]
[1748660873950,3.2078,2488.8,2488.4,4.607]
[1748660874152,3.2078,2488.8,2488.7,0.80332]
[1748660874357,3.2078,2488.8,2488.5,2.04617]
[1748660874655,3.2078,2488.8,2488.6,4.608]
[1748660874857,3.2078,2488.8,2488.1,4.608]
[1748660875058,1.3168,2488.7,2488.6,0.80335]
[1748660875262,2.12013,2488.7,2488.4,0.8034]
[1748660875463,1.3168,2488.7,2488.4,0.8034]
[1748660875665,4.0627,2488.7,2488.4,0.8034]
[1748660875864,4.0627,2488.7,2488.1,5.8891]
[1748660876064,4.0627,2488.7,2488.4,0.80341]
[1748660876267,2.7459,2488.7,2488.6,0.80335]
[1748660876562,2.7459,2488.7,2488.6,5.41235]
[1748660877463,3.54922,2488.7,2488.6,4.609]
[1748660877964,2.7459,2488.7,2488.4,4.609]
[1748660878164,0.80339,2488.5,2488.4,4.609]
[1748660878360,4.01119,2488.5,2488.4,4.609]
[1748660878561,3.2078,2488.5,2488.1,1.2898]
[1748660878861,0.80356,2488.0,2487.6,3.2078]
[1748660879161,3.2078,2488.2,2487.7,4.609]
[1748660879361,1.3105,2488.1,2487.6,3.2078]
[1748660879570,0.80375,2487.4,2487.0,0.80384]
[1748660879757,0.00603003,2487.4,2487.1,1.2898]
[1748660879958,0.80978003,2487.4,2487.1,1.2898]
[1748660880164,3.2078,2487.2,2487.0,4.605]
[1748660880363,4.01162,2487.2,2487.0,4.605]
[1748660880670,3.2078,2487.2,2487.0,4.605]
[1748660881170,1.3105,2487.3,2487.1,1.3427]
[1748660881366,3.2078,2487.2,2487.0,4.605]
[1748660881567,3.2078,2487.2,2486.6,3.2078]
[1748660881866,1.2735,2487.1,2486.6,3.2078]
[1748660882074,0.80408,2486.4,2485.9,6.75191]
[1748660882271,3.2078,2486.0,2485.9,5.9477]
[1748660882466,3.2078,2486.3,2485.9,5.9477]
[1748660882666,3.2078,2486.0,2485.6,40.492]
[1748660882970,3.2078,2485.7,2485.6,4.606]
[1748660883168,3.2078,2485.8,2485.6,4.606]
[1748660883466,0.00603003,2486.0,2485.6,4.606]
[1748660883868,3.2078,2485.9,2485.6,5.4103]
[1748660884071,3.2078,2485.9,2485.0,2.01126]
[1748660884275,0.00603003,2486.0,2485.8,0.80424]
[1748660884473,0.80423,2485.9,2485.8,4.606]
[1748660884676,4.01804003,2486.0,2485.6,0.8043]
[1748660884970,0.00603003,2486.0,2485.5,4.606]
[1748660885173,0.00603003,2486.0,2485.9,0.80423]
[1748660885474,0.00603003,2486.0,2485.9,8.62003]
[1748660885673,3.2078,2487.0,2486.8,0.80393]
[1748660885973,5.28979,2487.0,2486.6,5.41199]
[1748660886175,1.2781,2487.0,2486.6,5.41199]
[1748660886376,1.2781,2487.0,2486.6,4.608]
[1748660886672,4.01177,2486.7,2486.6,0.00603003]
[1748660887072,9.01177,2486.7,2486.6,0.00603003]
[1748660887373,4.01177,2486.7,2486.6,0.00603003]
[1748660888270,3.2078,2486.7,2486.6,0.00603003]
[1748660888471,0.00603003,2487.0,2486.9,0.8039]
[1748660888675,0.00603003,2487.0,2486.9,8.6207]
[1748660889274,0.00603003,2487.0,2486.9,3.2078]
[1748660889576,0.80990003,2487.0,2486.9,3.2078]
[1748660889880,0.00603003,2487.0,2486.9,3.2078]
[1748660890173,0.00603003,2487.0,2486.8,4.609]
[1748660890375,0.00603003,2487.0,2486.9,0.8039]
[1748660890574,0.00603003,2487.0,2486.8,4.609]
[1748660891080,1.32103003,2487.0,2486.8,4.609]
[1748660891473,1.32103003,2487.0,2486.9,0.8039]
[1748660891675,0.00603003,2487.0,2486.9,0.8039]
[1748660891876,0.00603003,2487.0,2486.9,5.8039]
[1748660892274,3.2078,2487.7,2487.6,0.80367]
[1748660893480,0.00603003,2487.9,2487.7,0.60273]
[1748660893874,0.00603003,2487.9,2487.5,4.01149]
[1748660894074,4.01146,2487.7,2487.6,4.609]
[1748660894378,1.27413003,2487.9,2487.4,4.609]
[1748660894578,1.2681,2487.6,2487.2,0.6614]
[1748660894773,0.00603003,2487.9,2487.4,4.609]
[1748660894980,0.00603003,2487.9,2487.8,0.80361]
[1748660895181,0.00603003,2487.9,2487.8,5.41261]
[1748660895375,0.00603003,2487.9,2487.8,10.41261]
[1748660895568,2.07147,2488.6,2488.4,0.6025]
[1748660895569,3.2078,2488.6,2488.4,0.6025]
[1748660895771,4.0915497,2488.5,2488.4,4.609]
[1748660895972,0.80343,2488.4,2488.0,5.41253]
[1748660896184,0.08037616,2488.3,2488.0,5.41253]
[1748660896384,0.08037616,2488.3,2488.0,4.609]
[1748660896581,0.00603003,2488.4,2488.0,4.609]
[1748660896786,0.00603003,2488.4,2488.3,4.01124]
[1748660897383,0.00603003,2488.4,2488.3,0.80344]
[1748660897584,0.00603003,2488.4,2488.2,4.609]
[1748660897782,0.00603003,2488.4,2488.3,0.80343]
[1748660898278,0.00603003,2488.4,2488.3,5.80343]
[1748660898878,3.2078,2488.9,2488.3,5.80343]
[1748660898879,2.3440093,2489.4,2488.3,5.0]
[1748660899076,2.3440093,2489.4,2489.3,4.01092]
[1748660899279,2.3440093,2489.4,2489.0,3.2078]
[1748660899482,2.3440093,2489.4,2489.1,4.608]
[1748660899680,3.2078,2489.3,2489.2,4.608]
[1748660899876,0.80311,2489.4,2489.2,4.608]
[1748660900081,0.80312,2489.3,2489.2,4.608]
[1748660900378,0.00603003,2489.5,2489.2,4.608]
[1748660900581,0.00603003,2489.5,2489.2,6.72964]
[1748660900783,0.00603003,2489.5,2489.3,4.607]
[1748660901180,1.22592665,2489.4,2489.3,4.607]
[1748660901688,1.22592665,2489.4,2489.3,5.41012]
[1748660901882,1.22592665,2489.4,2489.3,11.72862]
[1748660902073,1.22592665,2489.4,2489.3,12.39802]
[1748660902477,0.60951012,2489.6,2489.5,0.80305]
[1748660902685,0.60951012,2489.6,2489.5,13.61785]
[1748660902985,2.3440093,2490.0,2489.9,0.80293]
[1748660903184,4.5125,2490.3,2489.9,4.607]
[1748660903375,0.80287,2490.1,2489.9,4.607]
[1748660903782,1.3047,2490.0,2489.9,5.40993]
[1748660903983,1.3047,2490.0,2489.9,4.607]
[1748660904182,1.3047,2490.0,2489.5,4.4789]
[1748660904183,1.3047,2490.0,2489.6,0.80302]
[1748660904387,1.3047,2490.0,2489.7,5.40897]
[1748660904686,1.3047,2490.0,2489.8,0.80295]
[1748660905088,3e-08,2490.3,2490.2,0.80283]
[1748660905285,2.3440093,2491.2,2491.1,0.80254]
[1748660905483,2.3440093,2491.2,2491.1,5.40854]
[1748660905781,2.1309,2491.9,2491.4,0.80241]
[1748660905976,1.41006326,2491.8,2491.6,4.01017]
[1748660906284,1.41006326,2491.8,2491.7,5.40835]
[1748660906488,0.08026326,2491.8,2491.7,5.40835]
[1748660907280,0.08026326,2491.8,2491.6,4.4967]
[1748660907588,0.08026326,2491.8,2491.7,5.8939]
[1748660907790,0.08026326,2491.8,2491.7,6.69625]
[1748660907990,0.08026326,2491.8,2491.7,11.69625]
[1748660908482,0.00397769,2491.9,2491.8,0.80231]
[1748660908682,0.00397769,2491.9,2491.8,2.14951]
[1748660908886,0.00397769,2491.9,2491.8,7.14951]
[1748660909489,0.00397769,2491.9,2491.8,47.62951]
[1748660910292,0.00397769,2491.9,2491.8,41.8272]
[1748660910593,0.00397769,2491.9,2491.8,42.62952]
[1748660910995,0.00397769,2491.9,2491.8,40.48]
[1748660911288,0.80625769,2491.9,2491.8,40.48]
[1748660911493,2.15855769,2491.9,2491.8,40.48]
[1748660912189,1.35627769,2491.9,2491.8,40.48]
[1748660912392,0.00397769,2491.9,2491.8,41.28232]
[1748660912586,0.00397769,2491.9,2491.8,47.65332]
[1748660912788,4.5601,2493.0,2492.7,0.80201]
[1748660912990,0.08022784,2492.9,2492.8,4.671]
[1748660913598,0.08022784,2492.9,2492.8,5.47299]
[1748660913898,0.08022784,2492.9,2492.8,11.84399]
[1748660914196,2.00362,2494.6,2492.8,11.84399]
[1748660914197,3.2078,2494.0,2492.9,2.00489]
[1748660914391,0.08019567,2493.9,2493.7,3.2078]
[1748660914586,0.08019567,2493.9,2493.8,4.671]
[1748660914987,0.08019567,2493.9,2493.8,5.9198]
[1748660915491,0.08019567,2493.9,2493.8,11.72147]
[1748660915900,0.08019567,2493.9,2493.8,5.9198]
[1748660916285,0.88183567,2493.9,2493.8,1.2488]
[1748660916491,0.08019567,2493.9,2493.8,4.669]
[1748660916690,0.08019567,2493.9,2493.8,5.9178]
[1748660916993,2.88699567,2493.9,2493.8,5.9178]
[1748660917191,2.88699567,2493.9,2493.7,3.2078]
[1748660917192,6.09479567,2493.9,2493.3,1.2488]
[1748660917491,0.80177,2493.5,2493.4,4.669]
[1748660917991,0.80175,2493.6,2493.4,4.669]
[1748660918190,2.8068,2493.9,2493.5,3.2078]
[1748660918386,2.8068,2493.9,2493.2,3.21381709]
[1748660918597,0.8018,2493.4,2493.2,3.21381709]
[1748660918798,3.2078,2493.3,2493.0,4.668]
[1748660918999,0.80188,2493.2,2493.0,4.668]
[1748660919296,3.2078,2493.5,2493.0,4.668]
[1748660919498,3.2078,2493.3,2493.1,1.377]
[1748660919995,0.00597395,2493.4,2493.3,0.80183]
[1748660920492,0.00597395,2493.4,2493.3,5.80183]
[1748660920699,0.00597395,2493.4,2493.3,0.80183]
[1748660920891,0.00597395,2493.4,2493.1,5.38669]
[1748660921098,0.00597395,2493.4,2493.2,2.14476]
[1748660921595,0.00597395,2493.4,2493.3,1.3429]
[1748660921897,0.80778395,2493.4,2493.3,4.667]
[1748660922296,0.80184,2493.3,2493.0,0.00601709]
[1748660922597,0.00597395,2493.4,2493.1,4.667]
[1748660922598,0.80780395,2493.4,2493.1,4.667]
[1748660922901,0.80780395,2493.4,2493.0,0.00601709]
[1748660922902,0.80779395,2493.4,2493.2,4.667]
[1748660923096,0.80183,2493.3,2493.2,4.667]
[1748660923595,0.8019,2493.1,2493.0,0.00601709]
[1748660923797,0.80196,2492.9,2492.8,4.667]
[1748660924003,0.80203,2492.7,2492.6,4.667]
[1748660924205,0.80206,2492.6,2492.5,4.667]
[1748660924399,4.00986,2492.6,2492.5,4.667]
[1748660925199,9.00986,2492.6,2492.5,3.6324]
[1748660925400,0.80212,2492.4,2492.3,0.00601709]
[1748660926902,1.00232,2492.4,2492.3,0.00601709]
[1748660927306,0.2002,2492.4,2492.3,0.00601709]
[1748660927798,0.2002,2492.4,2492.3,5.80817709]
[1748660927998,3.2078,2493.1,2492.3,7.17797709]
[1748660928305,3.2078,2493.1,2493.0,0.80193]
[1748660928604,3.21377395,2493.4,2493.3,0.80183]
[1748660928799,0.80185,2493.3,2493.0,4.667]
[1748660929001,0.80185,2493.3,2493.0,5.46892]
[1748660929200,4.01559395,2493.4,2493.1,0.80189]
[1748660929403,2.07113,2493.3,2493.0,5.4689]
[1748660929911,0.80187,2493.2,2493.0,4.667]
[1748660930098,0.80192,2493.1,2492.8,4.00977]
[1748660930405,0.80192,2493.1,2492.9,4.667]
[1748660930707,3.21377395,2493.4,2492.9,4.667]
[1748660930903,0.80189,2493.2,2492.9,4.667]
[1748660931106,0.80193,2493.0,2492.9,4.667]
[1748660931609,2.07123,2493.0,2492.9,4.667]
[1748660932109,1.2693,2493.0,2492.9,4.667]
[1748660932611,7.07123,2493.0,2492.9,4.667]
[1748660932803,7.73943,2493.0,2492.9,4.667]
[1748660933010,7.73943,2493.0,2492.4,0.80211]
[1748660933011,0.80212,2492.4,2492.3,4.67301709]
[1748660933209,4.00992,2492.4,2492.3,4.67301709]
[1748660933711,1.3246,2492.7,2492.3,4.67301709]
[1748660933712,0.80206,2492.6,2492.3,4.67301709]
[1748660933904,3.2078,2492.4,2492.3,5.47517709]
[1748660934107,3.2078,2492.5,2492.4,0.80211]
[1748660934305,3.2078,2492.5,2492.3,4.67301709]
[1748660934306,3.2078,2492.5,2492.3,0.00601709]
[1748660934508,2.12672,2492.4,2492.3,0.00601709]
[1748660934812,1.3246,2492.4,2492.3,4.67301709]
[1748660935111,1.3246,2492.4,2492.3,5.47517709]
[1748660935409,3.2078,2492.9,2492.3,4.67301709]
[1748660935609,2.08392,2492.8,2492.5,0.80209]
[1748660935807,2.08392,2492.8,2492.3,4.67301709]
[1748660936008,3.2078,2492.6,2492.4,0.80211]
[1748660936208,1.2819,2492.5,2492.4,0.80211]
[1748660936604,1.20416185,2492.5,2492.4,0.80212]
[1748660936809,3.2078,2492.9,2492.8,0.80199]
[1748660937115,3.2078,2492.9,2492.8,5.46899]
[1748660937406,3.2078,2492.9,2492.8,4.667]
[1748660937809,4.00976,2492.9,2492.8,4.667]
[1748660938007,4.4897,2492.9,2492.8,4.667]
[1748660938213,5.29166,2492.9,2492.8,4.667]
[1748660939008,4.4897,2492.9,2492.8,4.667]
[1748660939209,5.29166,2492.9,2492.8,4.667]
[1748660940215,4.4897,2492.9,2492.3,0.00601709]
[1748660940415,4.00992,2492.4,2492.3,0.00601709]
[1748660940610,3.2078,2492.4,2492.3,0.00601709]
[1748660940812,4.00981,2492.8,2492.3,0.00601709]
[1748660941011,1.3421,2492.7,2492.3,0.00601709]
[1748660941312,0.80212,2492.4,2492.3,0.00601709]
[1748660941815,7.73982,2492.4,2492.3,0.00601709]
[1748660942315,0.80228,2491.9,2491.8,4.754]
[1748660942516,4.01008,2491.9,2491.8,4.754]
[1748660943107,4.01008,2491.9,2491.2,1.2588]
[1748660943108,0.80243,2491.5,2491.3,4.754]
[1748660943318,4.4814,2491.4,2491.3,4.754]
[1748660943506,3.2078,2491.7,2491.3,4.754]
[1748660943712,3.2078,2491.7,2491.6,0.80238]
[1748660943908,3.2078,2491.7,2491.4,1.2588]
[1748660944223,3.2078,2491.7,2491.4,4.754]
[1748660944413,0.80241,2491.5,2491.4,4.754]
[1748660944719,3.2078,2491.7,2491.4,4.754]
[1748660944915,0.80245,2491.4,2491.3,0.00601709]
[1748660945118,4.01025,2491.4,2491.3,0.00601709]
[1748660945714,3.2078,2491.4,2491.3,0.00601709]
[1748660945913,1.269,2491.5,2491.3,0.80849709]
[1748660946109,3.2078,2491.7,2491.4,4.755]
[1748660946417,0.80241,2491.5,2491.4,4.755]
[1748660946920,0.8024,2491.6,2491.4,4.755]
[1748660947120,1.269,2491.5,2491.4,4.755]
[1748660947519,2.07141,2491.5,2491.4,4.755]
[1748660947825,1.269,2491.5,2491.4,4.755]
[1748660948417,3.2078,2491.7,2491.4,4.755]
[1748660948720,5.28936,2491.7,2491.4,5.55742]
[1748660948916,4.487,2491.7,2491.4,4.755]
[1748660949217,3.2078,2491.7,2491.6,0.60178]
[1748660949420,0.00601709,2491.8,2491.6,5.0]
[1748660949623,0.00601709,2491.8,2491.7,2.13105]
[1748660950820,0.00601709,2491.8,2491.7,1.3287]
[1748660951124,0.00601709,2491.8,2491.4,4.755]
[1748660951419,1.30961709,2491.8,2491.4,6.125]
[1748660951621,3.2078,2491.6,2491.5,0.8024]
[1748660951822,3.2078,2491.6,2491.5,2.1724]
[1748660952025,0.00601709,2491.8,2491.7,0.80235]
[1748660952224,0.00601709,2491.8,2491.4,4.755]
[1748660952421,3.2078,2491.6,2491.5,0.80241]
[1748660952824,3.2078,2491.6,2491.4,6.125]
[1748660953028,3.2078,2491.6,2491.4,4.755]
[1748660953325,1.3036,2491.5,2490.5,3.2078]
[1748660953627,3.2078,2490.7,2490.6,5.5577]
[1748660953923,3.2078,2490.7,2490.6,4.755]
[1748660954125,3.2078,2490.7,2490.6,5.5577]
[1748660955028,3.2078,2491.0,2490.9,0.80261]
[1748660955328,3.2078,2491.0,2490.8,0.80262]
[1748660955821,3.2078,2491.0,2490.6,4.755]
[1748660956027,4.5251,2491.0,2490.9,0.80261]
[1748660956523,4.5251,2491.0,2490.6,4.755]
[1748660956829,3.2078,2490.9,2490.7,0.80265]
[1748660957025,4.4946,2490.9,2490.8,0.80264]
[1748660957331,4.4946,2490.9,2490.6,5.55768]
[1748660957628,4.4946,2490.9,2490.6,4.755]
[1748660957830,5.29721,2490.9,2490.6,5.55769]
[1748660958029,5.29721,2490.9,2490.6,4.755]
[1748660958225,4.4946,2490.9,2490.6,4.755]
[1748660958430,4.4946,2490.9,2490.8,0.80264]
[1748660959131,4.4946,2490.9,2490.7,0.80266]
[1748660959723,0.80266,2490.8,2490.6,4.755]
[1748660959931,1.2723,2490.7,2490.6,5.5577]
[1748660960134,1.2723,2490.7,2490.6,4.755]
[1748660960434,1.2723,2490.7,2490.6,5.5577]
[1748660961021,3.2078,2490.9,2490.8,0.80264]
[1748660961523,0.00601709,2491.8,2490.8,8.2078]
[1748660961727,0.00601709,2491.8,2491.7,0.80235]
[1748660961923,0.00601709,2491.8,2491.7,5.55935]
[1748660962120,0.00601709,2491.8,2491.7,8.76715]
[1748660962933,0.00601709,2491.8,2491.7,4.757]
[1748660963126,1.28301709,2491.8,2491.7,4.757]
[1748660963836,2.08533709,2491.8,2491.7,4.757]
[1748660964026,0.80248,2491.3,2491.2,4.756]
[1748660964428,5.0,2491.3,2490.8,10.3138119]
[1748660964736,0.8026,2491.0,2490.8,10.3138119]
[1748660964937,1.277,2490.9,2490.8,11.1164519]
[1748660965232,1.277,2490.9,2490.8,10.3138119]
[1748660965435,3.2078,2491.4,2490.8,10.3138119]
[1748660965732,0.80251,2491.2,2490.9,0.80259]
[1748660965936,0.80253,2491.2,2490.9,0.80259]
[1748660966229,1.4823,2491.1,2491.0,0.80257]
[1748660966436,0.2007,2491.1,2491.0,0.80257]
[1748660966730,0.2007,2491.1,2491.0,9.01037]
[1748660967132,4.4894,2491.7,2491.6,0.80238]